[Event "European Women Blitz-ch 2024"]
[Site "Monaco"]
[Date "2025.01.10"]
[Round "13.14"]
[White "Vega Gutierrez, Sabrina"]
[Black "Toncheva, Nadya"]
[Result "0-1"]
[Annotator "TA"]
[ECO "B20"]
[WhiteElo "2393"]
[BlackElo "2313"]
[PlyCount "60"]
[EventDate "2025.01.06"]
[EventType "swiss"]
[EventCountry "MNC"]
[SourceTitle "playchess.com"]
[Source "ChessBase"]
[SourceQuality "1"]
[TimeControl "180+2"]

{[%evp 9,60,-8,-20,-14,0,0,4,0,10,20,22,19,27,30,28,14,34,18,18,0,-11,-3,0,0,29,35,33,-18,-22,-21,-26,-25,-34,-26,-26,-92,-20,-26,-20,-5,0,-4,-8,-137,-141,-137,-135,-138,-6,-113,-125,-3104,-2993]} 1. e4 {[%emt 0:00:01]} c5 {[%emt 0:00:01]} 2. b3 {[%emt 0:00:01]} b6 {[%emt 0:00:04]} 3. d4 {[%emt 0:00:02]} cxd4 {[%emt 0:00:03]} 4. Qxd4 {[%emt 0:00:02]} Nc6 {[%emt 0:00:03]} 5. Qd2 {[%emt 0:00:04]} Nf6 {[%emt 0:00:06]} 6. Nc3 {[%emt 0:00:03]} Bb7 {[%emt 0:00:07]} 7. Bb2 {[%emt 0:00:01]} e6 {[%emt 0:00:02]} 8. O-O-O {[%emt 0:00:08]} Bb4 {[%emt 0:00:06][%cal Of6e4]} 9. f3 {[%emt 0:00:02][%cal Bf2f3,Bf3f4][%mdl 32]} d5 {[%emt 0:00:15][%cal Bd7d5,Bd5d4][%mdl 32]} 10. a3 {[%emt 0:00:42]} Bxc3 {[%emt 0:00:02]} (10... Ba5 $2 11. Bb5 $18 (11. exd5 Nxd5 12. b4 Ndxb4 $18) (11. b4 Nxb4 12. axb4 Bxb4 $18)) 11. Qxc3 {[%emt 0:00:11] Black should prevent exd5.} d4 {[%emt 0:00:26]} 12. Qe1 {[%emt 0:00:14]} O-O {[%emt 0:00:12]} 13. Ne2 {[%emt 0:00:57]} e5 {[%emt 0:00:05]} 14. f4 {[%emt 0:00:14]} Nxe4 {[%emt 0:00:10]} 15. fxe5 {[%emt 0:00:02]} Qg5+ {[%emt 0:00:08]} 16. Kb1 {[%emt 0:00:01]} Rad8 {[%emt 0:00:15]} 17. Nxd4 {[%emt 0:00:40]} Nxe5 {[%emt 0:00:03]} 18. Bd3 {[%emt 0:00:06]} (18. h4 $14 Qf4 19. Be2) 18... Nxd3 $11 {[%emt 0:00:04]} (18... Qxg2 $2 19. Rg1 Qh3 (19... Qxh2 $2 20. Bxe4 Bxe4 21. Qxe4 $18) (19... Nxd3 $2 20. Rxd3 Qxh2 21. Rxg7+ Kxg7 22. Nf3+ f6 23. Nxh2 $18) 20. Bxe4 $18) 19. Rxd3 {[%emt 0:00:02]} Rfe8 {[%emt 0:00:08][%cal Oe4c5]} (19... Qxg2 $2 20. Rg1 $18) 20. Nf3 {[%emt 0:00:05]} Qc5 $36 {[%emt 0:00:15][%mdl 2048] Black has the initiative.} (20... Qxg2 $2 21. Rg1 Rxd3 22. Rxg2 $18) 21. Rxd8 {[%emt 0:00:02]} Rxd8 {[%emt 0:00:01]} 22. Qe2 {[%emt 0:00:02] [#]} (22. a4 $11) 22... Re8 {[%emt 0:00:36] Black has more active pieces.} ({Black should play} 22... Qxa3 $1 $17 23. Ng5 Qe7 (23... Rd2 $2 24. Qh5 $18) 24. Nxe4 Qxe4) 23. Ka1 {[%emt 0:00:02]} Bc6 {[%emt 0:00:07]} 24. Re1 {[%emt 0:00:02]} Nf6 {[%emt 0:00:07]} 25. Qd1 {[%emt 0:00:02] White is weak on the light squares} Rxe1 {[%emt 0:00:02]} 26. Qxe1 {[%emt 0:00:01]} (26. Nxe1 $11 Qe7 27. Nf3) 26... Qxc2 $17 {[%emt 0:00:04]} 27. Nd4 {[%emt 0:00:00]} Qxg2 {[%emt 0:00:09]} 28. Qe7 {[%emt 0:00:05]} Qd5 {[%emt 0:00:08]} (28... h5 $17 {and ...Be4 should not be overlooked} 29. Nxc6 Qxc6 30. Qxa7 Qh1+ 31. Ka2 Qxh2 32. Qxb6 Qg2) 29. Nxc6 {[%emt 0:00:03]} (29. Qxa7 $11 {remains equal.} b5 30. Nxc6 Qxc6 31. a4) 29... Qxc6 {[%emt 0:00:01]} 30. Bxf6 $4 {[%emt 0:00:02][%mdl 8192]} (30. Qxa7 $17 Nd7 31. Ka2) 30... Qxf6+ {[%emt 0:00:01]} 0-1

[Event "European Women Blitz-ch 2024"]
[Site "Monaco"]
[Date "2025.01.10"]
[Round "13.15"]
[White "Zhukova, Natalia"]
[Black "Sliwicka, Alicja"]
[Result "1-0"]
[Annotator "TA"]
[ECO "D27"]
[WhiteElo "2306"]
[BlackElo "2344"]
[PlyCount "59"]
[EventDate "2025.01.06"]
[EventType "swiss"]
[EventCountry "MNC"]
[SourceTitle "playchess.com"]
[Source "ChessBase"]
[SourceQuality "1"]
[TimeControl "180+2"]

{[%evp 20,59,5,0,35,-7,5,0,87,-25,0,0,0,0,0,0,22,19,309,105,297,322,477,483,480,491,483,436,539,508,1403,1395,1526,1404,1457,1388,1300,1227,1684,1378,29983,29984]} 1. c4 {[%emt 0:00:01]} e6 {[%emt 0:00:01]} 2. Nc3 {[%emt 0:00:02]} d5 {[%emt 0:00:01]} 3. d4 {[%emt 0:00:01]} Nf6 {[%emt 0:00:02]} 4. Nf3 {[%emt 0:00:01]} dxc4 {[%emt 0:00:01]} 5. e3 {[%emt 0:00:06]} a6 {[%emt 0:00:03]} 6. a4 {[%emt 0:00:03]} c5 {[%emt 0:00:02]} 7. Bxc4 {[%emt 0:00:02]} Nc6 {[%emt 0:00:03]} 8. O-O {[%emt 0:00:02]} cxd4 {[%emt 0:00:02]} 9. exd4 {[%emt 0:00:01]} Be7 {[%emt 0:00:03]} 10. Be3 {[%emt 0:00:06]} O-O {[%emt 0:00:03]} 11. Qe2 {[%emt 0:00:01]} Bd7 {[%emt 0:00:18]} 12. Ne5 {[%emt 0:00:13]} Rc8 {[%emt 0:00:05]} 13. Rfd1 {[%emt 0:00:10]} Nb4 {[%emt 0:00:04] [#]} (13... Be8 $11 {remains equal.}) 14. a5 {[%emt 0:00:40] White is much more active.} (14. d5 $1 $16 {[%cal Rd5e6] Hoping for dxe6.} exd5 15. Bxd5) 14... Bd6 {[%emt 0:00:05]} 15. Bg5 {[%emt 0:00:17]} Be7 {[%emt 0:00:06]} 16. Bb3 {[%emt 0:00:14]} Rc7 {[%emt 0:00:35]} 17. Qf3 {[%emt 0:00:13]} h6 {[%emt 0:00:23]} 18. Bf4 {[%emt 0:00:07]} Rc8 $2 {[%emt 0:00:19][%mdl 8192] [#]} (18... Nbd5 $11 {and Black stays safe.}) 19. Qxb7 $2 {[%emt 0:00:14]} (19. d5 $1 $18 {[%cal Rd5e6]} Nbxd5 20. Nxd5 exd5 21. Bxd5) 19... Bc6 $2 {[%emt 0:00:47]} (19... Be8 $16 20. Bg3 (20. Ng6 fxg6 21. Bxe6+ Bf7 $14) 20... Rb8) 20. Nxc6 $18 {[%emt 0:00:08]} Rxc6 {[%emt 0:00:04] [#]} (20... Nxc6 {was necessary.} 21. Qxa6 Bd6) 21. d5 $1 {[%emt 0:00:18][%mdl 512]} exd5 {[%emt 0:00:24] [#]} 22. Nxd5 $1 {[%emt 0:00:01][%mdl 512]} Nfxd5 {[%emt 0:00:11]} 23. Bxd5 {[%emt 0:00:01] A strong pair of Bishops.} Qc8 {[%emt 0:00:03]} 24. Qxe7 {[%emt 0:00:09]} Rc2 {[%emt 0:00:02]} (24... Nxd5 $142 25. Rxd5 Re8) 25. Qxb4 {[%emt 0:00:04]} Qf5 {[%emt 0:00:01]} 26. Bg3 {[%emt 0:00:05][%cal Bf4g3,Bg3h4,Bh4e7][%mdl 32]} Rcc8 {[%emt 0:00:03]} 27. Qe4 {[%emt 0:00:09]} Qf6 {[%emt 0:00:01]} 28. Bh4 {[%emt 0:00:04]} Qxb2 {[%emt 0:00:01]} 29. Rab1 {[%emt 0:00:02]} Qa3 {[%emt 0:00:01]} 30. Be7 {[%emt 0:00:02]} 1-0

[Event "European Women Blitz-ch 2024"]
[Site "Monaco"]
[Date "2025.01.10"]
[Round "13.16"]
[White "Hrebenshchykova, Yelyzaveta"]
[Black "Bulmaga, Irina"]
[Result "1-0"]
[Annotator "TA"]
[ECO "C65"]
[WhiteElo "2280"]
[BlackElo "2386"]
[PlyCount "107"]
[EventDate "2025.01.06"]
[EventType "swiss"]
[EventCountry "MNC"]
[SourceTitle "playchess.com"]
[Source "ChessBase"]
[SourceQuality "1"]
[TimeControl "180+2"]

{[%evp 9,107,6,64,12,227,0,10,2,17,0,24,17,21,21,39,45,55,60,52,47,52,38,53,43,53,41,68,47,83,47,69,44,79,85,94,100,78,29,35,0,75,69,111,119,105,113,114,122,164,119,108,110,165,114,538,89,70,29,26,25,94,-37,0,24,29,0,50,42,62,0,17,12,35,0,10,17,106,88,110,66,453,391,432,439,422,359,485,395,460,464,676,660,809,750,750,534,609,601,2300,2200]} 1. e4 {[%emt 0:00:01]} e5 {[%emt 0:00:01]} 2. Nf3 {[%emt 0:00:01]} Nc6 {[%emt 0:00:01]} 3. Bb5 {[%emt 0:00:00]} Nf6 {[%emt 0:00:02]} 4. d3 {[%emt 0:00:07]} Bc5 {[%emt 0:00:02]} 5. c3 {[%emt 0:00:09]} d6 {[%emt 0:00:05]} (5... O-O $11) 6. O-O {[%emt 0:00:12]} (6. d4 $1 $14 exd4 7. cxd4 Bb4+ 8. Bd2) 6... Bg4 $2 {[%emt 0:00:05] [#]} (6... O-O $11 {and Black stays safe.}) 7. Be3 $2 {[%emt 0:00:41]} (7. d4 $1 $18) 7... Bb6 {[%emt 0:00:06]} 8. Nbd2 {[%emt 0:00:03] The position is equal.} h6 {[%emt 0:00:08]} 9. Nc4 {[%emt 0:00:02]} Bxe3 {[%emt 0:00:10]} 10. Nxe3 {[%emt 0:00:06]} Bd7 {[%emt 0:00:05]} 11. Re1 {[%emt 0:00:08]} Ne7 {[%emt 0:00:02]} 12. Bxd7+ {[%emt 0:00:44]} Nxd7 {[%emt 0:00:01]} 13. d4 {[%emt 0:00:02]} O-O {[%emt 0:00:05]} 14. Qb3 {[%emt 0:00:02]} Qc8 {[%emt 0:00:16]} 15. Rad1 {[%emt 0:00:03]} a5 {[%emt 0:00:02]} 16. a4 {[%emt 0:00:02]} Ng6 {[%emt 0:00:06]} 17. Nf5 {[%emt 0:00:03]} Kh7 {[%emt 0:00:11]} 18. g3 {[%emt 0:00:01] White has more active pieces.} Nb6 {[%emt 0:00:05]} 19. Kg2 {[%emt 0:00:04]} Qe8 {[%emt 0:00:01]} 20. Ra1 {[%emt 0:00:04][%cal Of5d6]} (20. Nxd6 {simplifies} Qxa4 21. Qxa4 Nxa4 22. Nc4) 20... Rd8 {[%emt 0:00:04]} 21. h4 {[%emt 0:00:05][%cal Bh2h4,Bh4h5][%mdl 32]} Qd7 {[%emt 0:00:32]} 22. h5 {[%emt 0:00:10]} Ne7 {[%emt 0:00:01]} 23. N3h4 {[%emt 0:00:05]} (23. Nxe7 $16 Qxe7 24. Qb5) 23... Ng8 {[%emt 0:00:19]} 24. Nf3 {[%emt 0:00:38]} Nf6 {[%emt 0:00:06]} (24... Ne7 $11) 25. dxe5 $16 {[%emt 0:00:01]} dxe5 {[%emt 0:00:16]} 26. Nxe5 {[%emt 0:00:00]} Qe8 {[%emt 0:00:00]} 27. Nf3 {[%emt 0:00:02]} Nxh5 {[%emt 0:00:07]} 28. e5 {[%emt 0:00:01]} g6 {[%emt 0:00:12]} 29. N5d4 {[%emt 0:00:01]} Ng7 {[%emt 0:00:07]} 30. Rh1 {[%emt 0:00:02]} Qe7 {[%emt 0:00:10] Repels Ng5+} (30... h5 $16 {was worth a try.}) 31. Qc2 {[%emt 0:00:05]} (31. Rae1 $18) 31... Nd5 $2 {[%emt 0:00:05][%mdl 8192]} (31... h5 $16) 32. Qc1 $2 {[%emt 0:00:00]} (32. Rxh6+ $18 Kxh6 33. Rh1+ Nh5 34. Nf5+ gxf5 35. Qxf5 Ne3+ 36. fxe3 Rd2+ 37. Nxd2) 32... h5 {[%emt 0:00:05]} 33. Ng5+ {[%emt 0:00:06]} Kg8 {[%emt 0:00:07]} 34. Re1 {[%emt 0:00:04]} c5 {[%emt 0:00:03]} (34... f6 $11 35. exf6 Qxf6) 35. Nb5 {[%emt 0:00:01]} (35. Ndf3 $16) 35... Nf5 {[%emt 0:00:08]} ({Black should play} 35... h4 $15 36. Nd6 (36. gxh4 f6 $17) 36... f6) 36. Nf3 $11 {[%emt 0:00:09]} Rd7 {[%emt 0:00:05]} 37. Qc2 {[%emt 0:00:01]} Rfd8 {[%emt 0:00:02]} (37... h4 $11) 38. Re4 $14 {[%emt 0:00:03]} Nc7 {[%emt 0:00:05]} 39. Re2 {[%emt 0:00:02]} (39. Nxc7 $14 Rxc7 40. e6) 39... Nxb5 {[%emt 0:00:02]} 40. axb5 {[%emt 0:00:00]} b6 {[%emt 0:00:00]} (40... Rd3 {keeps more tension.} 41. e6 Kg7 42. Ra4 Qf6) 41. Rae1 {[%emt 0:00:02]} Kg7 {[%emt 0:00:07]} 42. e6 {[%emt 0:00:02]} Rd6 {[%emt 0:00:04]} (42... Rd3 $11 {remains equal.}) 43. exf7 $16 {[%emt 0:00:01]} Qxf7 {[%emt 0:00:01]} 44. Ng5 {[%emt 0:00:01]} Qf6 {[%emt 0:00:02][%mdl 8192]} (44... Qd5+ $14 45. Qe4 Qxe4+ 46. Rxe4 Kf6) 45. Ne4 {[%emt 0:00:01]} Qf7 {[%emt 0:00:03]} 46. Nxd6 {[%emt 0:00:01]} Rxd6 {[%emt 0:00:01]} 47. Qe4 {[%emt 0:00:01]} Rf6 {[%emt 0:00:01]} 48. Qe5 {[%emt 0:00:06]} Qb7+ {[%emt 0:00:02]} 49. Kg1 {[%emt 0:00:02] White is clearly winning.} Qf7 {[%emt 0:00:01]} (49... Nd6 $142 50. Qe7+ Qxe7 51. Rxe7+ Kf8) 50. Qb8 $18 {[%emt 0:00:06]} Kh7 {[%emt 0:00:02]} 51. Re8 {[%emt 0:00:01][%cal Og3g4,Be2e8,Be8e5,Be5e7][%mdl 32] [#] g4! would now be deadly.} g5 {[%emt 0:00:03]} 52. R8e5 {[%emt 0:00:06]} h4 {[%emt 0:00:03]} 53. g4 {[%emt 0:00:01]} Nh6 {[%emt 0:00:01]} 54. Re7 {[%emt 0:00:01] Weighted Error Value: White=0.44/Black=0.63.  Loses game:     	---       	Black=3      Missed win:     	White=2     	---        Mistake:       	White=4     	Black=7      Inaccurate:     	White=6     	Black=7      OK:         	White=15    	Black=6      Best:        	White=1     	Black=3} 1-0

[Event "European Women Blitz-ch 2024"]
[Site "Monaco"]
[Date "2025.01.10"]
[Round "13.17"]
[White "Maisuradze, Nino"]
[Black "Socko, Monika"]
[Result "1/2-1/2"]
[Annotator "TA"]
[ECO "E14"]
[WhiteElo "2174"]
[BlackElo "2371"]
[PlyCount "105"]
[EventDate "2025.01.06"]
[EventType "swiss"]
[EventCountry "MNC"]
[SourceTitle "playchess.com"]
[Source "ChessBase"]
[SourceQuality "1"]
[TimeControl "180+2"]

{[%evp 13,105,32,31,7,2,-7,0,-8,0,-2,-12,-8,10,0,60,58,63,0,2,0,72,66,112,72,115,38,38,-20,-27,-19,352,0,0,-11,-18,-14,0,-50,-49,-53,-72,-72,-32,-78,0,0,0,-53,0,-56,-56,-66,-56,-56,-56,-70,-64,-69,-66,-69,-56,-66,-64,-64,-56,-56,-39,-56,-56,-63,-56,-56,-56,-121,-97,-109,-107,-92,0,0,0,0,0,0,0,0,0,0,0,0,0,0,0,0]} 1. d4 {[%emt 0:00:02]} Nf6 {[%emt 0:00:01]} 2. c4 {[%emt 0:00:00]} e6 {[%emt 0:00:01]} 3. Nf3 {[%emt 0:00:00]} Bb4+ {[%emt 0:00:01]} 4. Nbd2 {[%emt 0:00:01]} b6 {[%emt 0:00:02]} 5. a3 {[%emt 0:00:03]} Bxd2+ {[%emt 0:00:02]} 6. Qxd2 {[%emt 0:00:02]} Bb7 {[%emt 0:00:01]} 7. e3 {[%emt 0:00:02]} O-O {[%emt 0:00:05]} 8. b4 {[%emt 0:00:03]} a5 {[%emt 0:00:03]} 9. Bb2 {[%emt 0:00:02]} Ne4 {[%emt 0:00:10]} 10. Qc2 {[%emt 0:00:01]} axb4 {[%emt 0:00:04]} 11. axb4 {[%emt 0:00:00]} Rxa1+ {[%emt 0:00:01]} 12. Bxa1 {[%emt 0:03:10]} Qe7 {[%emt 0:00:04][%cal Ob8c6]} 13. c5 {[%emt 0:00:00]} (13. b5 $5) 13... d5 {[%emt 0:00:15]} (13... Bd5 $11) 14. Bd3 $14 {[%emt 0:00:00]} Nc6 {[%emt 0:00:18]} 15. Bc3 {[%emt 0:00:00]} (15. Qb2 $14) 15... bxc5 $11 {[%emt 0:00:14]} 16. bxc5 {[%emt 0:00:00]} f5 {[%emt 0:00:27]} (16... e5 $11 {remains equal.} 17. Bxe4 (17. dxe5 Qxc5 18. O-O Nxc3 $11) (17. Nxe5 Nxe5 18. dxe5 Nxc3 $11) 17... dxe4 18. Qxe4 Rb8) 17. O-O $16 {[%emt 0:00:00]} Nd8 {[%emt 0:00:04]} (17... Ra8 $14) 18. Ne5 {[%emt 0:00:00]} Nf7 {[%emt 0:00:08]} 19. c6 {[%emt 0:00:00]} (19. Nxf7 $1 $16 Qxf7 20. Ba1) 19... Nxe5 $1 $14 {[%emt 0:00:22]} 20. cxb7 {[%emt 0:00:00]} (20. dxe5 $14 Bxc6 21. Bd4) 20... Nxd3 $11 {[%emt 0:00:01]} 21. Qxd3 {[%emt 0:00:00] and Ra1 would now be decisive} Qa3 $2 {[%emt 0:00:01][%mdl 8192] [#]} (21... Rb8 $11 {and Black is okay.}) 22. Qb5 $1 {[%emt 0:00:00]} Nxc3 {[%emt 0:00:10]} 23. b8=Q {[%emt 0:00:22]} Nxb5 {[%emt 0:00:01]} 24. Qxb5 {[%emt 0:00:00][%mdl 4096] Endgame KQR-KQR. Black is a pawn up.} Qd6 {[%emt 0:00:13]} 25. f4 {[%emt 0:00:00]} (25. g3 $11) 25... Ra8 $15 {[%emt 0:00:08]} 26. Rc1 {[%emt 0:00:00]} Qa3 $36 {[%emt 0:00:16][%csl LRc1,LRe3][%mdl 2048] White is under strong pressure.} 27. Re1 {[%emt 0:00:00]} Qc3 {[%emt 0:00:01] Prevents Qc6.} (27... Qa5 {simplifies} 28. Qxa5 Rxa5 29. Rc1 Ra7) 28. Kf2 {[%emt 0:00:02] [#]} Ra2+ {[%emt 0:00:05]} (28... Kf7 $1 $17) 29. Re2 $11 {[%emt 0:00:01]} Rxe2+ {[%emt 0:00:04]} 30. Qxe2 {[%emt 0:00:01] KQ-KQ. Black is a pawn up.} (30. Kxe2 $11 Qc4+ 31. Qxc4 dxc4 32. Kd2) 30... c5 {[%emt 0:00:04]} (30... Qc6 $15) 31. dxc5 {[%emt 0:00:02]} (31. Qb5 $11 Qd2+ (31... cxd4 32. Qe8#) 32. Kf3 Qd1+ (32... cxd4 33. Qe8#) 33. Kf2 Qd2+ (33... cxd4 34. Qe8#)) 31... Qxc5 $15 {[%emt 0:00:00]} 32. Qb2 {[%emt 0:00:02]} Kf7 {[%emt 0:00:03]} 33. Qb7+ {[%emt 0:00:04]} Qe7 {[%emt 0:00:01]} 34. Qb2 {[%emt 0:00:02]} Qa7 {[%emt 0:00:03]} 35. Kf3 {[%emt 0:00:02]} h6 {[%emt 0:00:02]} 36. h3 {[%emt 0:00:00]} Qa4 {[%emt 0:00:04]} 37. Kf2 {[%emt 0:00:03]} Qc6 {[%emt 0:00:02]} 38. g4 {[%emt 0:00:02]} fxg4 {[%emt 0:00:03]} 39. hxg4 {[%emt 0:00:01]} Qc7 {[%emt 0:00:04]} 40. Qd4 {[%emt 0:00:02]} Qc2+ {[%emt 0:00:03]} 41. Kg3 {[%emt 0:00:02]} Qc1 {[%emt 0:00:04]} 42. Kf2 {[%emt 0:00:02]} Qh1 {[%emt 0:00:04]} 43. Qa7+ {[%emt 0:00:02] [#]} ({White should play} 43. Kg3 $1 $15) 43... Kg6 $1 $17 {[%emt 0:00:00]} 44. f5+ {[%emt 0:00:02]} exf5 {[%emt 0:00:02]} 45. gxf5+ {[%emt 0:00:02]} Kxf5 {[%emt 0:00:03]} ({Better is} 45... Kh7 $17 {...Qh2+ would now be deadly.} 46. Qf7 Qe4) 46. Qf7+ $11 {[%emt 0:00:02]} Ke4 {[%emt 0:00:03]} 47. Qe7+ {[%emt 0:00:04]} (47. Qxg7 Qf3+ 48. Ke1 Qxe3+ (48... Kxe3 49. Qxh6+ Kd4 50. Qb6+ Kc4 51. Qc6+ Kb4 52. Qb6+ Ka4 53. Qa6+ Kb4 54. Qb6+ Kc4 55. Qa6+ Kc5 56. Qa7+ Kb4 57. Qb6+ $11) 49. Kf1 Qf3+ 50. Kg1 h5 51. Qg6+ Kf4 $19) 47... Kd3 {[%emt 0:00:02]} 48. Qa3+ {[%emt 0:00:02]} Kd2 {[%emt 0:00:03]} 49. Qb2+ {[%emt 0:00:01]} Kd3 {[%emt 0:00:01] ( -> ...Qh2+)} 50. Qa3+ {[%emt 0:00:02]} Kc4 {[%emt 0:00:01]} 51. Qa4+ {[%emt 0:00:01]} Kc3 {[%emt 0:00:00]} 52. Qa3+ {[%emt 0:00:01]} Kc4 {[%emt 0:00:04]} 53. Qa4+ {[%emt 0:00:00]} 1/2-1/2